[Event "Early-Titled-Tuesday-Blitz-September-05-2023"]
[Site "Chess.com"]
[Date "2023.09.05"]
[Round "8"]
[White "ilushka"]
[Black "bazar-wokzal"]
[Result "0-1"]
[WhiteElo "2397"]
[BlackElo "2528"]
[TimeControl "180+1"]
[EndTime "9:27:33 PDT"]
[Termination "bazar-wokzal won by resignation"]

1. Nf3 {[%clk 0:03:00.9]} 1... c5 {[%clk 0:02:59.5]} 2. b3 {[%clk 0:03:00.6]}
2... d5 {[%clk 0:02:56.3]} 3. e3 {[%clk 0:03:00]} 3... a6 {[%clk 0:02:56]} 4.
Bb2 {[%clk 0:02:59.9]} 4... Nc6 {[%clk 0:02:55.9]} 5. c4 {[%clk 0:03:00.3]} 5...
d4 {[%clk 0:02:55.2]} 6. b4 {[%clk 0:02:58.7]} 6... e5 {[%clk 0:02:46.9]} 7. b5
{[%clk 0:02:55]} 7... axb5 {[%clk 0:02:44.7]} 8. cxb5 {[%clk 0:02:55.2]} 8...
Nb4 {[%clk 0:02:42.8]} 9. Nxe5 {[%clk 0:02:52.7]} 9... d3 {[%clk 0:02:41.2]} 10.
Qf3 {[%clk 0:01:25]} 10... Nf6 {[%clk 0:02:35.4]} 11. Na3 {[%clk 0:01:14.4]}
11... Rxa3 {[%clk 0:02:29.8]} 12. Bxa3 {[%clk 0:01:15.3]} 12... Nc2+ {[%clk
0:02:29.9]} 13. Kd1 {[%clk 0:01:15.7]} 13... Nxa3 {[%clk 0:02:27.1]} 14. Bxd3
{[%clk 0:01:14.5]} 14... Bd6 {[%clk 0:02:18]} 15. Nc4 {[%clk 0:01:08.6]} 15...
Nxc4 {[%clk 0:02:16.8]} 16. Bxc4 {[%clk 0:01:09.5]} 16... O-O {[%clk 0:02:16.9]}
17. h3 {[%clk 0:01:02.7]} 17... Qa5 {[%clk 0:02:08.1]} 18. Ke2 {[%clk
0:01:00.3]} 18... Be6 {[%clk 0:02:04.7]} 19. Bxe6 {[%clk 0:00:50.3]} 19... Qxb5+
{[%clk 0:02:04]} 20. Bc4 {[%clk 0:00:39.8]} 20... Qxc4+ {[%clk 0:02:03.6]} 21.
Ke1 {[%clk 0:00:39.5]} 21... Be5 {[%clk 0:01:59.9]} 22. Rb1 {[%clk 0:00:39]}
22... Qxa2 {[%clk 0:01:57.7]} 23. Qxb7 {[%clk 0:00:26.8]} 23... h5 {[%clk
0:01:50.9]} 24. Qb3 {[%clk 0:00:20.2]} 24... Qa6 {[%clk 0:01:46.2]} 25. Qb5
{[%clk 0:00:19.7]} 25... Qa8 {[%clk 0:01:39.1]} 26. Qb7 {[%clk 0:00:12.6]} 26...
Qd8 {[%clk 0:01:24.3]} 27. Ke2 {[%clk 0:00:09.5]} 27... c4 {[%clk 0:01:23.6]}
28. Rhd1 {[%clk 0:00:08.4]} 28... Qd3+ {[%clk 0:01:22.7]} 29. Ke1 {[%clk
0:00:08.2]} 29... c3 {[%clk 0:01:23.1]} 30. Rbc1 {[%clk 0:00:04.8]} 30... c2
{[%clk 0:01:21.8]} 31. Qc6 {[%clk 0:00:02.1]} 31... cxd1=Q+ {[%clk 0:01:19.5]}
32. Rxd1 {[%clk 0:00:03]} 32... Rd8 {[%clk 0:01:17.5]} 33. f4 {[%clk 0:00:03.2]}
33... Bb8 {[%clk 0:01:10.7]} 34. Qf3 {[%clk 0:00:04.1]} 34... Ne4 {[%clk
0:01:10]} 35. Qe2 {[%clk 0:00:04.5]} 35... Bc7 {[%clk 0:01:05.8]} 36. Qxd3
{[%clk 0:00:04.2]} 36... Rxd3 {[%clk 0:01:06.4]} 37. Ke2 {[%clk 0:00:05.1]}
37... Ra3 {[%clk 0:01:05.1]} 38. Rc1 {[%clk 0:00:04.5]} 38... Ba5 {[%clk
0:01:04.5]} 39. d3 {[%clk 0:00:04.8]} 39... Ra2+ {[%clk 0:00:56.9]} 40. Kf3
{[%clk 0:00:05.3]} 40... Nf6 {[%clk 0:00:53.4]} 41. Rc8+ {[%clk 0:00:04.7]}
41... Kh7 {[%clk 0:00:52.9]} 42. g4 {[%clk 0:00:05.6]} 42... h4 {[%clk
0:00:51.2]} 43. g5 {[%clk 0:00:05.6]} 43... Nd5 {[%clk 0:00:47.2]} 44. e4 {[%clk
0:00:04.8]} 44... Nb4 {[%clk 0:00:44.4]} 45. Kg4 {[%clk 0:00:04.5]} 45... Nxd3
{[%clk 0:00:44]} 46. Kxh4 {[%clk 0:00:05.1]} 46... Nxf4 {[%clk 0:00:43.6]} 47.
Kg4 {[%clk 0:00:05.8]} 47... Ng6 {[%clk 0:00:42.6]} 48. h4 {[%clk 0:00:06.3]}
48... Rg2+ {[%clk 0:00:40]} 49. Kf5 {[%clk 0:00:05.9]} 49... Nxh4+ {[%clk
0:00:39.8]} 50. Ke5 {[%clk 0:00:06.8]} 50... Rxg5+ {[%clk 0:00:39.4]} 51. Kd4
{[%clk 0:00:07.2]} 51... Bd2 {[%clk 0:00:36.3]} 52. Ra8 {[%clk 0:00:08.1]} 52...
Bf4 {[%clk 0:00:35.4]} 53. Ra7 {[%clk 0:00:07.6]} 53... Kg6 {[%clk 0:00:34.8]}
54. Kd3 {[%clk 0:00:06.6]} 54... Rg2 {[%clk 0:00:33.3]} 55. Ra6+ {[%clk
0:00:07]} 55... f6 {[%clk 0:00:33.3]} 56. Ra8 {[%clk 0:00:06.9]} 56... Rd2+
{[%clk 0:00:32.7]} 57. Kc4 {[%clk 0:00:07.8]} 57... Rd7 {[%clk 0:00:32.4]} 58.
Rh8 {[%clk 0:00:07.2]} 58... Nf3 {[%clk 0:00:32]} 59. Kc5 {[%clk 0:00:07.6]}
59... Ne5 {[%clk 0:00:32]} 60. Kb4 {[%clk 0:00:06.9]} 60... Kg5 {[%clk
0:00:31.9]} 61. Ra8 {[%clk 0:00:06.1]} 61... Kg4 {[%clk 0:00:32.1]} 62. Kc3
{[%clk 0:00:06.1]} 62... Kf3 {[%clk 0:00:31.9]} 63. Rg8 {[%clk 0:00:06.1]} 63...
g5 {[%clk 0:00:31.7]} 64. Rf8 {[%clk 0:00:05.8]} 64... Ng4 {[%clk 0:00:30.6]}
65. e5 {[%clk 0:00:05.7]} 65... Bxe5+ {[%clk 0:00:30.7]} 66. Kc4 {[%clk
0:00:06.6]} 66... Ne3+ {[%clk 0:00:30.6]} 67. Kc5 {[%clk 0:00:06.9]} 67... Bd6+
{[%clk 0:00:30.6]} 68. Kc6 {[%clk 0:00:07.8]} 68... Bxf8 {[%clk 0:00:30.8]} 69.
Kxd7 {[%clk 0:00:08.2]} 69... g4 {[%clk 0:00:31.3]} 70. Ke6 {[%clk 0:00:09.1]}
70... g3 {[%clk 0:00:31.8]} 0-1

[Event "Early-Titled-Tuesday-Blitz-September-05-2023"]
[Site "Chess.com"]
[Date "2023.09.05"]
[Round "8"]
[White "RobertoJBM"]
[Black "SashaKuzhilniy"]
[Result "0-1"]
[WhiteElo "2792"]
[BlackElo "2636"]
[TimeControl "180+1"]
[EndTime "9:27:35 PDT"]
[Termination "SashaKuzhilniy won by resignation"]

1. e4 {[%clk 0:03:00.9]} 1... d5 {[%clk 0:02:57.6]} 2. exd5 {[%clk 0:03:00.5]}
2... Qxd5 {[%clk 0:02:58.5]} 3. Nc3 {[%clk 0:03:00.6]} 3... Qe5+ {[%clk
0:02:58.7]} 4. Be2 {[%clk 0:02:59.7]} 4... Bg4 {[%clk 0:02:59.1]} 5. d4 {[%clk
0:02:59.3]} 5... Bxe2 {[%clk 0:03:00]} 6. Ngxe2 {[%clk 0:02:59.3]} 6... Qa5
{[%clk 0:03:00.3]} 7. O-O {[%clk 0:02:59.2]} 7... Nf6 {[%clk 0:02:59.4]} 8. Bf4
{[%clk 0:02:59.1]} 8... Nc6 {[%clk 0:02:59]} 9. a3 {[%clk 0:02:58.1]} 9... O-O-O
{[%clk 0:02:56.9]} 10. b4 {[%clk 0:02:56.5]} 10... Qh5 {[%clk 0:02:57.4]} 11. b5
{[%clk 0:02:49.9]} 11... Na5 {[%clk 0:02:54.7]} 12. Qd3 {[%clk 0:02:46.6]} 12...
e6 {[%clk 0:02:50.5]} 13. Ng3 {[%clk 0:02:32.7]} 13... Qg6 {[%clk 0:02:49.1]}
14. Qe2 {[%clk 0:02:23.7]} 14... Rxd4 {[%clk 0:02:32.7]} 15. Be3 {[%clk
0:02:21.7]} 15... Rc4 {[%clk 0:02:33.1]} 16. Bd2 {[%clk 0:01:54.7]} 16... Qg4
{[%clk 0:02:10.7]} 17. Qe1 {[%clk 0:01:40.8]} 17... Bc5 {[%clk 0:01:53]} 18. Kh1
{[%clk 0:01:37.9]} 18... Qh4 {[%clk 0:01:38.7]} 19. h3 {[%clk 0:01:18.5]} 19...
Rd8 {[%clk 0:01:30.1]} 20. Nce2 {[%clk 0:01:14.1]} 20... b6 {[%clk 0:01:13.2]}
21. Bxa5 {[%clk 0:01:13.7]} 21... bxa5 {[%clk 0:01:14.1]} 22. Qxa5 {[%clk
0:01:12.6]} 22... Bb6 {[%clk 0:01:11.6]} 23. Qe1 {[%clk 0:01:02]} 23... Rxc2
{[%clk 0:01:11]} 24. a4 {[%clk 0:00:58.3]} 24... Ne4 {[%clk 0:00:58.3]} 25. a5
{[%clk 0:00:52.9]} 25... Bc5 {[%clk 0:00:20.5]} 26. Qb1 {[%clk 0:00:40.3]} 26...
Rdd2 {[%clk 0:00:13.5]} 27. Nxe4 {[%clk 0:00:28.1]} 27... Qxe4 {[%clk
0:00:14.4]} 28. Ng3 {[%clk 0:00:28]} 28... Qb4 {[%clk 0:00:14.8]} 29. Qxb4
{[%clk 0:00:24.1]} 29... Bxb4 {[%clk 0:00:15.7]} 30. Ne4 {[%clk 0:00:22.8]}
30... Re2 {[%clk 0:00:15.1]} 31. Ng5 {[%clk 0:00:21]} 31... Rxf2 {[%clk
0:00:13.9]} 32. Rxf2 {[%clk 0:00:20.7]} 32... Rxf2 {[%clk 0:00:14.8]} 33. Nxh7
{[%clk 0:00:19.4]} 33... Be7 {[%clk 0:00:13.5]} 34. Rc1 {[%clk 0:00:15.5]} 34...
Kb7 {[%clk 0:00:12.5]} 35. Rc4 {[%clk 0:00:14.7]} 35... Rf1+ {[%clk 0:00:11.4]}
36. Kh2 {[%clk 0:00:15]} 36... Rf5 {[%clk 0:00:11.3]} 37. g4 {[%clk 0:00:14.3]}
37... Rxb5 {[%clk 0:00:11.1]} 38. Ra4 {[%clk 0:00:15.2]} 38... Ka6 {[%clk
0:00:08.5]} 39. Kg2 {[%clk 0:00:14.9]} 39... Rxa5 {[%clk 0:00:08.7]} 40. Rf4
{[%clk 0:00:15.6]} 40... f6 {[%clk 0:00:08.4]} 41. Re4 {[%clk 0:00:15.7]} 41...
Re5 {[%clk 0:00:08.2]} 42. Rd4 {[%clk 0:00:15.6]} 42... Kb5 {[%clk 0:00:07.1]}
43. Rd7 {[%clk 0:00:15.6]} 43... Bd6 {[%clk 0:00:07.4]} 44. Rxg7 {[%clk
0:00:15.9]} 44... Re2+ {[%clk 0:00:06.7]} 45. Kf3 {[%clk 0:00:15.8]} 45... Rh2
{[%clk 0:00:07.4]} 46. Nxf6 {[%clk 0:00:14.9]} 46... Rxh3+ {[%clk 0:00:07.9]}
47. Ke4 {[%clk 0:00:15.8]} 47... a5 {[%clk 0:00:07.5]} 48. Rg8 {[%clk
0:00:15.4]} 48... a4 {[%clk 0:00:07.7]} 49. Rb8+ {[%clk 0:00:15.8]} 49... Kc4
{[%clk 0:00:08.2]} 50. Ra8 {[%clk 0:00:16.5]} 50... a3 {[%clk 0:00:08.1]} 51. g5
{[%clk 0:00:17.1]} 51... Rg3 {[%clk 0:00:07.7]} 52. Ra5 {[%clk 0:00:11.8]} 52...
Kb4 {[%clk 0:00:07.7]} 53. Ra6 {[%clk 0:00:10.8]} 53... Rxg5 {[%clk 0:00:07.7]}
54. Ne8 {[%clk 0:00:11.6]} 54... Re5+ {[%clk 0:00:07.6]} 55. Kd4 {[%clk
0:00:12.1]} 55... Rd5+ {[%clk 0:00:08.3]} 56. Ke4 {[%clk 0:00:12.7]} 56... Kb3
{[%clk 0:00:08.5]} 57. Nf6 {[%clk 0:00:12.7]} 57... Re5+ {[%clk 0:00:08.3]} 58.
Kd3 {[%clk 0:00:13.4]} 58... Rb5 {[%clk 0:00:08.4]} 59. Ne4 {[%clk 0:00:13.6]}
59... Rd5+ {[%clk 0:00:07.6]} 60. Ke2 {[%clk 0:00:13.6]} 60... Bb4 {[%clk
0:00:08.1]} 61. Nf2 {[%clk 0:00:13.5]} 61... Rd2+ {[%clk 0:00:08.3]} 62. Ke3
{[%clk 0:00:13.7]} 62... Rxf2 {[%clk 0:00:08.2]} 63. Kxf2 {[%clk 0:00:13.8]}
63... a2 {[%clk 0:00:08.8]} 64. Ke3 {[%clk 0:00:14.1]} 64... Ba3 {[%clk
0:00:08.5]} 0-1

[Event "Early-Titled-Tuesday-Blitz-September-05-2023"]
[Site "Chess.com"]
[Date "2023.09.05"]
[Round "8"]
[White "djano"]
[Black "sokidze"]
[Result "1-0"]
[WhiteElo "2617"]
[BlackElo "2760"]
[TimeControl "180+1"]
[EndTime "9:27:38 PDT"]
[Termination "djano won on time"]

1. e4 {[%clk 0:03:00.9]} 1... c5 {[%clk 0:03:00.6]} 2. Nc3 {[%clk 0:03:00.7]}
2... Nc6 {[%clk 0:03:00.2]} 3. Bb5 {[%clk 0:03:00.4]} 3... Nd4 {[%clk
0:03:00.8]} 4. Nf3 {[%clk 0:03:01]} 4... e6 {[%clk 0:03:00.6]} 5. O-O {[%clk
0:02:59.9]} 5... a6 {[%clk 0:03:01]} 6. Bd3 {[%clk 0:02:59.3]} 6... Nc6 {[%clk
0:03:01.6]} 7. b3 {[%clk 0:02:55.7]} 7... d6 {[%clk 0:02:33.3]} 8. Bb2 {[%clk
0:02:52.8]} 8... Nf6 {[%clk 0:02:33.1]} 9. Re1 {[%clk 0:02:51.3]} 9... e5 {[%clk
0:02:31.4]} 10. Nd5 {[%clk 0:02:46.3]} 10... Bg4 {[%clk 0:02:20.1]} 11. Be2
{[%clk 0:02:37.4]} 11... Be7 {[%clk 0:02:07.5]} 12. Nxe5 {[%clk 0:02:07.4]}
12... Nxe5 {[%clk 0:01:43.1]} 13. Nxf6+ {[%clk 0:01:41.5]} 13... Bxf6 {[%clk
0:01:43.2]} 14. Bxe5 {[%clk 0:01:40.6]} 14... Bxe5 {[%clk 0:01:43.5]} 15. Bxg4
{[%clk 0:01:40]} 15... Bxa1 {[%clk 0:01:40]} 16. Qxa1 {[%clk 0:01:39.2]} 16...
O-O {[%clk 0:01:40.7]} 17. d4 {[%clk 0:01:37.5]} 17... Qg5 {[%clk 0:01:36.5]}
18. Bf3 {[%clk 0:01:35.9]} 18... cxd4 {[%clk 0:01:31.2]} 19. Qxd4 {[%clk
0:01:36.8]} 19... Qc5 {[%clk 0:01:28.5]} 20. Qd2 {[%clk 0:01:19.3]} 20... b5
{[%clk 0:01:28.5]} 21. e5 {[%clk 0:01:12.7]} 21... Rae8 {[%clk 0:01:27.3]} 22.
exd6 {[%clk 0:01:07.5]} 22... Qxd6 {[%clk 0:01:24]} 23. Qc1 {[%clk 0:01:07.8]}
23... Rxe1+ {[%clk 0:01:17.8]} 24. Qxe1 {[%clk 0:01:08.7]} 24... Qc5 {[%clk
0:01:14.4]} 25. Be4 {[%clk 0:00:55.9]} 25... g6 {[%clk 0:01:05.3]} 26. Bd3
{[%clk 0:00:55.5]} 26... Qc6 {[%clk 0:01:00.6]} 27. h4 {[%clk 0:00:49.4]} 27...
Re8 {[%clk 0:01:00.3]} 28. Qb4 {[%clk 0:00:45.9]} 28... h5 {[%clk 0:01:00]} 29.
a4 {[%clk 0:00:41.6]} 29... bxa4 {[%clk 0:00:56]} 30. bxa4 {[%clk 0:00:42.5]}
30... Qf6 {[%clk 0:00:39.8]} 31. a5 {[%clk 0:00:27.1]} 31... Rd8 {[%clk
0:00:37.4]} 32. g3 {[%clk 0:00:19.7]} 32... Qf3 {[%clk 0:00:27.4]} 33. Qb6
{[%clk 0:00:14.4]} 33... Re8 {[%clk 0:00:13]} 34. Qxa6 {[%clk 0:00:14.7]} 34...
Re1+ {[%clk 0:00:13.3]} 35. Bf1 {[%clk 0:00:15]} 35... Rc1 {[%clk 0:00:07.5]}
36. Qc4 {[%clk 0:00:14]} 36... Qd1 {[%clk 0:00:05.3]} 37. a6 {[%clk 0:00:13.6]}
37... Rxc2 {[%clk 0:00:05.7]} 38. Qa4 {[%clk 0:00:08.5]} 38... Qd2 {[%clk
0:00:03.5]} 39. Qf4 {[%clk 0:00:06]} 39... Qxf4 {[%clk 0:00:03.4]} 40. gxf4
{[%clk 0:00:06.9]} 40... Ra2 {[%clk 0:00:03.6]} 41. Kg2 {[%clk 0:00:07.1]} 41...
Kg7 {[%clk 0:00:03.7]} 42. Kf3 {[%clk 0:00:06.9]} 42... Kf6 {[%clk 0:00:03.6]}
43. Bc4 {[%clk 0:00:07.1]} 43... Ra3+ {[%clk 0:00:03.2]} 44. Ke2 {[%clk
0:00:06.6]} 44... Ra4 {[%clk 0:00:03]} 45. Bb5 {[%clk 0:00:05.7]} 45... Ra5
{[%clk 0:00:02.2]} 46. Bc4 {[%clk 0:00:05.9]} 46... Kf5 {[%clk 0:00:01.8]} 47.
Ke3 {[%clk 0:00:05.2]} 47... Ra3+ {[%clk 0:00:02.4]} 48. Kd4 {[%clk 0:00:04.8]}
48... Kxf4 {[%clk 0:00:02.8]} 49. Kc5 {[%clk 0:00:03.7]} 49... f6 {[%clk
0:00:01.9]} 50. Kb4 {[%clk 0:00:04.1]} 50... Ra1 {[%clk 0:00:02.5]} 51. Bb5
{[%clk 0:00:04.7]} 51... g5 {[%clk 0:00:01.8]} 52. Ba4 {[%clk 0:00:04.7]} 52...
Rb1+ {[%clk 0:00:01.9]} 53. Bb3 {[%clk 0:00:05.1]} 53... Ra1 {[%clk 0:00:02.5]}
54. Ba4 {[%clk 0:00:05.4]} 54... Re1 {[%clk 0:00:01.9]} 55. Bc6 {[%clk 0:00:05]}
55... Rb1+ {[%clk 0:00:01.8]} 56. Kc5 {[%clk 0:00:04.7]} 56... gxh4 {[%clk
0:00:02.4]} 57. a7 {[%clk 0:00:04.5]} 57... Rc1+ {[%clk 0:00:01.7]} 58. Kb6
{[%clk 0:00:04.3]} 58... Ra1 {[%clk 0:00:02]} 59. Bb7 {[%clk 0:00:03.9]} 1-0

[Event "Early-Titled-Tuesday-Blitz-September-05-2023"]
[Site "Chess.com"]
[Date "2023.09.05"]
[Round "8"]
[White "Rikikits"]
[Black "Msb2"]
[Result "0-1"]
[WhiteElo "2851"]
[BlackElo "3098"]
[TimeControl "180+1"]
[EndTime "9:27:40 PDT"]
[Termination "Msb2 won on time"]

1. c4 {[%clk 0:03:00.9]} 1... e6 {[%clk 0:03:00.3]} 2. Nf3 {[%clk 0:03:00.6]}
2... d5 {[%clk 0:03:01.2]} 3. g3 {[%clk 0:03:01]} 3... Nf6 {[%clk 0:03:01.4]} 4.
Bg2 {[%clk 0:03:01.6]} 4... Nc6 {[%clk 0:03:02]} 5. b3 {[%clk 0:02:59]} 5... Bd6
{[%clk 0:03:01.9]} 6. Bb2 {[%clk 0:02:58.6]} 6... O-O {[%clk 0:03:02.5]} 7. d4
{[%clk 0:02:54.2]} 7... dxc4 {[%clk 0:03:01.2]} 8. bxc4 {[%clk 0:02:55.1]} 8...
e5 {[%clk 0:03:01.7]} 9. d5 {[%clk 0:02:43.5]} 9... Na5 {[%clk 0:02:43.8]} 10.
Nbd2 {[%clk 0:02:40.9]} 10... Re8 {[%clk 0:02:41.2]} 11. e4 {[%clk 0:02:38.8]}
11... c6 {[%clk 0:02:39.8]} 12. O-O {[%clk 0:02:36.9]} 12... cxd5 {[%clk
0:02:40.2]} 13. cxd5 {[%clk 0:02:37.2]} 13... Bd7 {[%clk 0:02:40.6]} 14. Re1
{[%clk 0:02:33.2]} 14... Rc8 {[%clk 0:02:36.6]} 15. Rc1 {[%clk 0:02:07.6]} 15...
Qb6 {[%clk 0:02:32.1]} 16. Bc3 {[%clk 0:02:02.1]} 16... Ng4 {[%clk 0:02:22.2]}
17. Bxa5 {[%clk 0:01:46.2]} 17... Qxa5 {[%clk 0:01:40.6]} 18. Nc4 {[%clk
0:01:46.1]} 18... Qxa2 {[%clk 0:01:23.7]} 19. Re2 {[%clk 0:01:36]} 19... Qa6
{[%clk 0:01:22.8]} 20. Nxd6 {[%clk 0:01:22.6]} 20... Rxc1 {[%clk 0:01:07.1]} 21.
Qxc1 {[%clk 0:01:23.5]} 21... Qxe2 {[%clk 0:01:07.5]} 22. Nxe8 {[%clk 0:01:24]}
22... Qxf2+ {[%clk 0:01:07.9]} 23. Kh1 {[%clk 0:01:24.3]} 23... Ne3 {[%clk
0:01:08.1]} 24. Qg1 {[%clk 0:01:14.5]} 24... Qxg1+ {[%clk 0:01:03.5]} 25. Kxg1
{[%clk 0:01:15.4]} 25... Bxe8 {[%clk 0:01:04.3]} 26. Nxe5 {[%clk 0:01:15.8]}
26... Nxg2 {[%clk 0:01:01.9]} 27. Kxg2 {[%clk 0:01:14.8]} 27... f6 {[%clk
0:01:02.5]} 28. Nc4 {[%clk 0:01:13.3]} 28... b5 {[%clk 0:01:02.9]} 29. Na5
{[%clk 0:01:06.3]} 29... b4 {[%clk 0:00:44]} 30. Kf3 {[%clk 0:01:04.7]} 30...
Ba4 {[%clk 0:00:43.4]} 31. Ke3 {[%clk 0:01:04.9]} 31... b3 {[%clk 0:00:43]} 32.
Nc4 {[%clk 0:01:04.5]} 32... Bb5 {[%clk 0:00:42.3]} 33. Na3 {[%clk 0:00:58.6]}
33... Bf1 {[%clk 0:00:38.5]} 34. Kd4 {[%clk 0:00:52]} 34... Kf7 {[%clk
0:00:38.8]} 35. Kc3 {[%clk 0:00:38.6]} 35... Bg2 {[%clk 0:00:38.9]} 36. Nc4
{[%clk 0:00:36.6]} 36... Ke7 {[%clk 0:00:34.1]} 37. Nd2 {[%clk 0:00:33.9]} 37...
f5 {[%clk 0:00:33.7]} 38. Nxb3 {[%clk 0:00:22.5]} 38... fxe4 {[%clk 0:00:30.7]}
39. Kd4 {[%clk 0:00:20]} 39... e3 {[%clk 0:00:31.4]} 40. Kxe3 {[%clk 0:00:17.7]}
40... Bxd5 {[%clk 0:00:31.8]} 41. Nc5 {[%clk 0:00:12.3]} 41... Kd6 {[%clk
0:00:29.9]} 42. Kd4 {[%clk 0:00:12.9]} 42... a5 {[%clk 0:00:29.4]} 43. h4 {[%clk
0:00:12.7]} 43... Bc6 {[%clk 0:00:29.7]} 44. Kc4 {[%clk 0:00:12.3]} 44... Ke5
{[%clk 0:00:27.5]} 45. Nd3+ {[%clk 0:00:09.2]} 45... Kf5 {[%clk 0:00:27.1]} 46.
Nf4 {[%clk 0:00:08.3]} 46... Be8 {[%clk 0:00:21.1]} 47. Kd4 {[%clk 0:00:05.1]}
47... Bf7 {[%clk 0:00:20.6]} 48. Nd3 {[%clk 0:00:02.7]} 48... a4 {[%clk
0:00:19.8]} 49. Kc3 {[%clk 0:00:03.3]} 49... Bg8 {[%clk 0:00:14.7]} 50. Nf2
{[%clk 0:00:02.8]} 50... Ke5 {[%clk 0:00:13]} 51. Kb4 {[%clk 0:00:02.4]} 51...
Bb3 {[%clk 0:00:13.2]} 52. Kc3 {[%clk 0:00:02.8]} 52... Be6 {[%clk 0:00:08.8]}
53. Kb4 {[%clk 0:00:02.6]} 53... Kd4 {[%clk 0:00:09.5]} 54. Kxa4 {[%clk
0:00:02.9]} 54... Ke3 {[%clk 0:00:10.1]} 55. Nd1+ {[%clk 0:00:03.2]} 55... Kf3
{[%clk 0:00:10.8]} 56. h5 {[%clk 0:00:02.1]} 56... Kxg3 {[%clk 0:00:10.9]} 57.
Kb4 {[%clk 0:00:03]} 57... Bg4 {[%clk 0:00:10.9]} 58. h6 {[%clk 0:00:02.8]}
58... gxh6 {[%clk 0:00:08.2]} 59. Nc3 {[%clk 0:00:03.5]} 59... Bf3 {[%clk
0:00:07.8]} 60. Kc4 {[%clk 0:00:03.4]} 60... h5 {[%clk 0:00:08.5]} 61. Kd3
{[%clk 0:00:02.9]} 61... h4 {[%clk 0:00:09.1]} 62. Nb5 {[%clk 0:00:02.9]} 62...
h3 {[%clk 0:00:09.3]} 63. Nd4 {[%clk 0:00:03.8]} 63... h2 {[%clk 0:00:10]} 64.
Nf5+ {[%clk 0:00:04.3]} 64... Kf2 {[%clk 0:00:10.1]} 0-1

[Event "Early-Titled-Tuesday-Blitz-September-05-2023"]
[Site "Chess.com"]
[Date "2023.09.05"]
[Round "8"]
[White "MKlose11"]
[Black "vishwa_vijeta"]
[Result "0-1"]
[WhiteElo "2645"]
[BlackElo "2535"]
[TimeControl "180+1"]
[EndTime "9:27:43 PDT"]
[Termination "vishwa_vijeta won on time"]

1. e4 {[%clk 0:02:56.7]} 1... c5 {[%clk 0:02:58.3]} 2. Nc3 {[%clk 0:02:56.6]}
2... g6 {[%clk 0:02:58]} 3. g3 {[%clk 0:02:57.5]} 3... Bg7 {[%clk 0:02:55.8]} 4.
Bg2 {[%clk 0:02:57.7]} 4... Nc6 {[%clk 0:02:56.4]} 5. d3 {[%clk 0:02:58.6]} 5...
e6 {[%clk 0:02:55.7]} 6. Be3 {[%clk 0:02:58.6]} 6... d6 {[%clk 0:02:55.4]} 7.
Qd2 {[%clk 0:02:58.6]} 7... Nge7 {[%clk 0:02:55]} 8. Bh6 {[%clk 0:02:57.5]} 8...
O-O {[%clk 0:02:52.8]} 9. h4 {[%clk 0:02:56.9]} 9... Nd4 {[%clk 0:02:47.9]} 10.
O-O-O {[%clk 0:02:49.5]} 10... Nec6 {[%clk 0:02:14.5]} 11. h5 {[%clk 0:02:48.1]}
11... Bxh6 {[%clk 0:02:10.1]} 12. Qxh6 {[%clk 0:02:47.3]} 12... g5 {[%clk
0:02:10.4]} 13. f4 {[%clk 0:02:46.1]} 13... f6 {[%clk 0:02:08.8]} 14. fxg5
{[%clk 0:02:31.6]} 14... fxg5 {[%clk 0:02:08.3]} 15. Nh3 {[%clk 0:02:31.8]}
15... Qe7 {[%clk 0:01:57]} 16. Nxg5 {[%clk 0:02:05.1]} 16... Rf6 {[%clk
0:01:53.3]} 17. Qxh7+ {[%clk 0:01:52.2]} 17... Qxh7 {[%clk 0:01:53.3]} 18. Nxh7
{[%clk 0:01:53.1]} 18... Kxh7 {[%clk 0:01:53.9]} 19. g4 {[%clk 0:01:53.7]} 19...
Rf2 {[%clk 0:01:51.6]} 20. Rd2 {[%clk 0:01:49.2]} 20... Rxd2 {[%clk 0:01:46.2]}
21. Kxd2 {[%clk 0:01:50.1]} 21... Ne5 {[%clk 0:01:46.3]} 22. g5 {[%clk
0:01:33.7]} 22... Nef3+ {[%clk 0:01:43.3]} 23. Bxf3 {[%clk 0:01:34]} 23... Nxf3+
{[%clk 0:01:43.9]} 24. Ke3 {[%clk 0:01:34.9]} 24... Nxg5 {[%clk 0:01:44.5]} 25.
Nb5 {[%clk 0:01:35.6]} 25... Bd7 {[%clk 0:01:41]} 26. Nxd6 {[%clk 0:01:34.8]}
26... Rf8 {[%clk 0:01:40.1]} 27. Nxb7 {[%clk 0:01:30]} 27... c4 {[%clk
0:01:36.5]} 28. Nc5 {[%clk 0:01:25.8]} 28... Bc6 {[%clk 0:01:32.2]} 29. Rg1
{[%clk 0:01:22.2]} 29... Rg8 {[%clk 0:01:08.3]} 30. dxc4 {[%clk 0:01:17.3]}
30... Be8 {[%clk 0:01:07.9]} 31. h6 {[%clk 0:01:12.2]} 31... Bf7 {[%clk
0:01:02]} 32. Rh1 {[%clk 0:01:08.4]} 32... Rc8 {[%clk 0:00:51.5]} 33. b4 {[%clk
0:01:08]} 33... a5 {[%clk 0:00:42.2]} 34. a3 {[%clk 0:01:04.9]} 34... axb4
{[%clk 0:00:42]} 35. axb4 {[%clk 0:01:05.8]} 35... Rb8 {[%clk 0:00:41.7]} 36. c3
{[%clk 0:01:05]} 36... Rg8 {[%clk 0:00:38.4]} 37. Nd7 {[%clk 0:01:02.1]} 37...
Rd8 {[%clk 0:00:36.1]} 38. Ne5 {[%clk 0:00:58.5]} 38... Bg6 {[%clk 0:00:33.4]}
39. Rg1 {[%clk 0:00:51.3]} 39... Kxh6 {[%clk 0:00:32.5]} 40. Nxg6 {[%clk
0:00:44]} 40... Kxg6 {[%clk 0:00:32.5]} 41. c5 {[%clk 0:00:38.7]} 41... Kf6
{[%clk 0:00:24.3]} 42. b5 {[%clk 0:00:35.8]} 42... Nf7 {[%clk 0:00:22.6]} 43. c6
{[%clk 0:00:26.7]} 43... Ne5 {[%clk 0:00:21.8]} 44. Rb1 {[%clk 0:00:15.6]} 44...
Rd3+ {[%clk 0:00:19.9]} 45. Ke2 {[%clk 0:00:09.7]} 45... Rxc3 {[%clk 0:00:20.2]}
46. Kd2 {[%clk 0:00:05.1]} 46... Rc4 {[%clk 0:00:20.1]} 47. Ke3 {[%clk 0:00:05]}
47... Ke7 {[%clk 0:00:19.8]} 48. Kf4 {[%clk 0:00:05.3]} 48... Nd3+ {[%clk
0:00:19.2]} 49. Ke3 {[%clk 0:00:05.5]} 49... Ne5 {[%clk 0:00:17.3]} 50. Kf4
{[%clk 0:00:05.5]} 50... Kf6 {[%clk 0:00:15.8]} 51. Rh1 {[%clk 0:00:03.4]} 51...
Rc3 {[%clk 0:00:12.3]} 52. Rh6+ {[%clk 0:00:02.8]} 52... Ng6+ {[%clk 0:00:13]}
53. Rxg6+ {[%clk 0:00:02.6]} 53... Kxg6 {[%clk 0:00:13]} 54. Ke5 {[%clk
0:00:02.8]} 54... Kf7 {[%clk 0:00:13.6]} 55. Kd6 {[%clk 0:00:02.9]} 55... Rb3
{[%clk 0:00:13.1]} 56. Kc5 {[%clk 0:00:02.5]} 56... Ke7 {[%clk 0:00:13.4]} 57.
Kb6 {[%clk 0:00:02.8]} 57... Kd8 {[%clk 0:00:12.2]} 0-1